Workbook

Sheet 综合成绩
A1: 石阡县2023年特岗教师招聘综合成绩及入围体检人员名单
A2: 序号 | B2: 姓名 | C2: 准考证号 | D2: 报考学段 | E2: 报考学科 | F2: 笔试成绩 | G2: 折合50% | H2: 面试成绩 | I2: 折合50% | J2: 幼教志愿者加分 | K2: 笔试面试总成绩 | L2: 是否进入体检 | M2: 备注
A3: 1 | B3: 鲁冰花 | C3: 20230606011109 | D3: 初中 | E3: 道德与法治 | F3: 85.5 | G3: =F3*0.5 -> 42.75 | H3: 86.55 | I3: =ROUND(H3*0.5,2) -> 43.28 | K3: =I3+G3+J3 -> 86.03 | L3: 是
A4: 2 | B4: 侯琼崔 | C4: 20230606011106 | D4: 初中 | E4: 道德与法治 | F4: 82 | G4: 41 | H4: 84.21 | I4: 42.11 | K4: 83.11 | L4: 是
A5: 3 | B5: 刘莎莎 | C5: 20230606011111 | D5: 初中 | E5: 道德与法治 | F5: 79 | G5: 39.5 | H5: 83.11 | I5: 41.56 | K5: 81.06
A6: 4 | B6: 廖安香 | C6: 20230606011010 | D6: 初中 | E6: 道德与法治 | F6: 77 | G6: 38.5 | H6: 84.31 | I6: 42.16 | K6: 80.66
A7: 5 | B7: 杜帮芹 | C7: 20230606011103 | D7: 初中 | E7: 道德与法治 | F7: 76 | G7: 38 | H7: 83.32 | I7: 41.66 | K7: 79.66
A8: 6 | B8: 向洁 | C8: 20230606011115 | D8: 初中 | E8: 道德与法治 | F8: 76 | G8: 38 | H8: 82.23 | I8: 41.12 | K8: 79.12
A9: 7 | B9: 邓川川 | C9: 20230606011123 | D9: 初中 | E9: 道德与法治 | F9: 78 | G9: 39 | H9: 79.99 | I9: 40 | K9: 79
A10: 8 | B10: 黄申超 | C10: 20230606012315 | D10: 初中 | E10: 地理 | F10: 82.5 | G10: 41.25 | H10: 84.17 | I10: 42.09 | K10: 83.34 | L10: 是
A11: 9 | B11: 蔡棚 | C11: 20230606012304 | D11: 初中 | E11: 地理 | F11: 85 | G11: 42.5 | H11: 75.51 | I11: 37.76 | K11: 80.26
A12: 10 | B12: 杨娅 | C12: 20230606012310 | D12: 初中 | E12: 地理 | F12: 75.5 | G12: 37.75 | H12: 79.56 | I12: 39.78 | K12: 77.53
A13: 11 | B13: 杨婷 | C13: 20230606012226 | D13: 初中 | E13: 生物 | F13: 72 | G13: 36 | H13: 84.2 | I13: 42.1 | K13: 78.1 | L13: 是
A14: 12 | B14: 刘蓉 | C14: 20230606012214 | D14: 初中 | E14: 生物 | F14: 74 | G14: 37 | H14: 81.71 | I14: 40.86 | K14: 77.86
A15: 13 | B15: 文祖会 | C15: 20230606012223 | D15: 初中 | E15: 生物 | F15: 73.5 | G15: 36.75 | H15: 81.65 | I15: 40.83 | K15: 77.58
A16: 14 | B16: 伍青轻 | C16: 20230606011202 | D16: 初中 | E16: 数学 | F16: 84 | G16: 42 | H16: 78.91 | I16: 39.46 | K16: 81.46 | L16: 是
A17: 15 | B17: 雷洪飞 | C17: 20230606011201 | D17: 初中 | E17: 数学 | F17: 77 | G17: 38.5 | H17: 75.02 | I17: 37.51 | K17: 76.01
A18: 16 | B18: 杨琼惠 | C18: 20230606011203 | D18: 初中 | E18: 数学 | F18: 57 | G18: 28.5 | H18: 缺考 | I18: 0 | K18: 28.5
A19: 17 | B19: 涂仕荣 | C19: 20230606013007 | D19: 初中 | E19: 体育 | F19: 82.5 | G19: 41.25 | H19: 88.27 | I19: 44.14 | K19: 85.39 | L19: 是
A20: 18 | B20: 王燕强 | C20: 20230606013230 | D20: 初中 | E20: 体育 | F20: 72 | G20: 36 | H20: 86.76 | I20: 43.38 | K20: 79.38
A21: 19 | B21: 黄傲 | C21: 20230606013008 | D21: 初中 | E21: 体育 | F21: 71 | G21: 35.5 | H21: 85.49 | I21: 42.75 | K21: 78.25
A22: 20 | B22: 符胜 | C22: 20230606013001 | D22: 初中 | E22: 体育 | F22: 71 | G22: 35.5 | H22: 83.76 | I22: 41.88 | K22: 77.38
A23: 21 | B23: 高顺勇 | C23: 20230606012115 | D23: 初中 | E23: 物理 | F23: 61.5 | G23: 30.75 | H23: 83.87 | I23: 41.94 | K23: 72.69 | L23: 是
A24: 22 | B24: 肖廷标 | C24: 20230606012107 | D24: 初中 | E24: 物理 | F24: 61.5 | G24: 30.75 | H24: 81.62 | I24: 40.81 | K24: 71.56
A25: 23 | B25: 王建建 | C25: 20230606012113 | D25: 初中 | E25: 物理 | F25: 59.5 | G25: 29.75 | H25: 79.9 | I25: 39.95 | K25: 69.7
A26: 24 | B26: 常国玲子 | C26: 20230606010102 | D26: 初中 | E26: 语文 | F26: 76 | G26: 38 | H26: 91.96 | I26: 45.98 | K26: 83.98 | L26: 是
A27: 25 | B27: 徐屹 | C27: 20230606010115 | D27: 初中 | E27: 语文 | F27: 75.5 | G27: 37.75 | H27: 78.16 | I27: 39.08 | K27: 76.83
A28: 26 | B28: 唐小会 | C28: 20230606010106 | D28: 初中 | E28: 语文 | F28: 72.5 | G28: 36.25 | H28: 70.65 | I28: 35.33 | K28: 71.58
A29: 27 | B29: 任广林 | C29: 20230606011126 | D29: 小学 | E29: 道德与法治 | F29: 73 | G29: 36.5 | H29: 86.08 | I29: 43.04 | K29: 79.54 | L29: 是
A30: 28 | B30: 罗芳 | C30: 20230606011125 | D30: 小学 | E30: 道德与法治 | F30: 72 | G30: 36 | H30: 84.43 | I30: 42.22 | K30: 78.22
A31: 29 | B31: 胡林青 | C31: 20230606011128 | D31: 小学 | E31: 道德与法治 | F31: 73 | G31: 36.5 | H31: 81.4 | I31: 40.7 | K31: 77.2
A32: 30 | B32: 徐双 | C32: 20230606012616 | D32: 小学 | E32: 科学 | F32: 60 | G32: 30 | H32: 77.19 | I32: 38.6 | K32: 68.6 | L32: 是
A33: 31 | B33: 杨芳 | C33: 20230606012617 | D33: 小学 | E33: 科学 | F33: 55 | G33: 27.5 | H33: 80.05 | I33: 40.03 | K33: 67.53
A34: 32 | B34: 苏湖琴 | C34: 20230606012615 | D34: 小学 | E34: 科学 | F34: 58 | G34: 29 | H34: 73.69 | I34: 36.85 | K34: 65.85
A35: 33 | B35: 陶柔羽 | C35: 20230606012618 | D35: 小学 | E35: 科学 | F35: 55 | G35: 27.5 | H35: 76.05 | I35: 38.03 | K35: 65.53
A36: 34 | B36: 周亚菊 | C36: 20230606012507 | D36: 小学 | E36: 美术 | F36: 86.5 | G36: 43.25 | H36: 83.54 | I36: 41.77 | K36: 85.02 | L36: 是
A37: 35 | B37: 石情 | C37: 20230606012509 | D37: 小学 | E37: 美术 | F37: 81 | G37: 40.5 | H37: 85.76 | I37: 42.88 | K37: 83.38 | L37: 是
A38: 36 | B38: 马晓莉 | C38: 20230606012421 | D38: 小学 | E38: 美术 | F38: 80 | G38: 40 | H38: 84.86 | I38: 42.43 | K38: 82.43
A39: 37 | B39: 王琦 | C39: 20230606012516 | D39: 小学 | E39: 美术 | F39: 79 | G39: 39.5 | H39: 82.18 | I39: 41.09 | K39: 80.59
A40: 38 | B40: 罗立欢 | C40: 20230606012413 | D40: 小学 | E40: 美术 | F40: 81 | G40: 40.5 | H40: 缺考 | I40: 0 | K40: 40.5
A41: 39 | B41: 史茂春 | C41: 20230606012428 | D41: 小学 | E41: 美术 | F41: 79.5 | G41: 39.75 | H41: 缺考 | I41: 0 | K41: 39.75
A42: 40 | B42: 黄薇薇 | C42: 20230606011519 | D42: 小学 | E42: 数学 | F42: 86 | G42: 43 | H42: 91.89 | I42: 45.95 | K42: 88.95 | L42: 是
A43: 41 | B43: 涂志艳 | C43: 20230606011513 | D43: 小学 | E43: 数学 | F43: 92 | G43: 46 | H43: 84.69 | I43: 42.35 | K43: 88.35 | L43: 是
A44: 42 | B44: 雷哲 | C44: 20230606011413 | D44: 小学 | E44: 数学 | F44: 82 | G44: 41 | H44: 92.79 | I44: 46.4 | K44: 87.4 | L44: 是
A45: 43 | B45: 席文 | C45: 20230606011318 | D45: 小学 | E45: 数学 | F45: 91 | G45: 45.5 | H45: 81.48 | I45: 40.74 | K45: 86.24 | L45: 是
A46: 44 | B46: 彭山多 | C46: 20230606011225 | D46: 小学 | E46: 数学 | F46: 85 | G46: 42.5 | H46: 87.43 | I46: 43.72 | K46: 86.22 | L46: 是
A47: 45 | B47: 任勇 | C47: 20230606011210 | D47: 小学 | E47: 数学 | F47: 87 | G47: 43.5 | H47: 84.02 | I47: 42.01 | K47: 85.51 | L47: 是
A48: 46 | B48: 潘朝勇 | C48: 20230606011223 | D48: 小学 | E48: 数学 | F48: 86 | G48: 43 | H48: 84.95 | I48: 42.48 | K48: 85.48 | L48: 是
A49: 47 | B49: 窦远芬 | C49: 20230606011309 | D49: 小学 | E49: 数学 | F49: 80 | G49: 40 | H49: 88.73 | I49: 44.37 | K49: 84.37 | L49: 是
A50: 48 | B50: 吴泳 | C50: 20230606011521 | D50: 小学 | E50: 数学 | F50: 80 | G50: 40 | H50: 88.17 | I50: 44.09 | K50: 84.09
A51: 49 | B51: 余苏勤 | C51: 20230606011301 | D51: 小学 | E51: 数学 | F51: 78 | G51: 39 | H51: 90.09 | I51: 45.05 | K51: 84.05
A52: 50 | B52: 徐芳 | C52: 20230606011602 | D52: 小学 | E52: 数学 | F52: 88 | G52: 44 | H52: 79.83 | I52: 39.92 | K52: 83.92
A53: 51 | B53: 王银连 | C53: 20230606011222 | D53: 小学 | E53: 数学 | F53: 90 | G53: 45 | H53: 75.54 | I53: 37.77 | K53: 82.77
A54: 52 | B54: 王春娇 | C54: 20230606011220 | D54: 小学 | E54: 数学 | F54: 84 | G54: 42 | H54: 81.43 | I54: 40.72 | K54: 82.72
A55: 53 | B55: 李双双 | C55: 20230606011208 | D55: 小学 | E55: 数学 | F55: 80 | G55: 40 | H55: 85.09 | I55: 42.55 | K55: 82.55
A56: 54 | B56: 毛明露 | C56: 20230606011407 | D56: 小学 | E56: 数学 | F56: 85 | G56: 42.5 | H56: 80.04 | I56: 40.02 | K56: 82.52
A57: 55 | B57: 孙纪源 | C57: 20230606011311 | D57: 小学 | E57: 数学 | F57: 81 | G57: 40.5 | H57: 83.74 | I57: 41.87 | K57: 82.37
A58: 56 | B58: 唐高琼 | C58: 20230606011610 | D58: 小学 | E58: 数学 | F58: 91 | G58: 45.5 | H58: 71.75 | I58: 35.88 | K58: 81.38
A59: 57 | B59: 姜树林 | C59: 20230606011423 | D59: 小学 | E59: 数学 | F59: 77 | G59: 38.5 | H59: 83.85 | I59: 41.93 | K59: 80.43
A60: 58 | B60: 吴棚针 | C60: 20230606011217 | D60: 小学 | E60: 数学 | F60: 81 | G60: 40.5 | H60: 79.74 | I60: 39.87 | K60: 80.37
A61: 59 | B61: 王莎莎 | C61: 20230606011426 | D61: 小学 | E61: 数学 | F61: 82 | G61: 41 | H61: 78.73 | I61: 39.37 | K61: 80.37
A62: 60 | B62: 刘见荣 | C62: 20230606011207 | D62: 小学 | E62: 数学 | F62: 85 | G62: 42.5 | H62: 74.75 | I62: 37.38 | K62: 79.88
A63: 61 | B63: 张著芬 | C63: 20230606011215 | D63: 小学 | E63: 数学 | F63: 80 | G63: 40 | H63: 77.95 | I63: 38.98 | K63: 78.98
A64: 62 | B64: 田梦容 | C64: 20230606011505 | D64: 小学 | E64: 数学 | F64: 82 | G64: 41 | H64: 75.09 | I64: 37.55 | K64: 78.55
A65: 63 | B65: 林春艳 | C65: 20230606011419 | D65: 小学 | E65: 数学 | F65: 77 | G65: 38.5 | H65: 73.71 | I65: 36.86 | K65: 75.36
A66: 64 | B66: 陈影 | C66: 20230606011213 | D66: 小学 | E66: 数学 | F66: 77 | G66: 38.5 | H66: 72.46 | I66: 36.23 | K66: 74.73
A67: 65 | B67: 方春 | C67: 20230606013229 | D67: 小学 | E67: 体育 | F67: 75 | G67: =F67*0.5 -> 37.5 | H67: 87.04 | I67: =ROUND(H67*0.5,2) -> 43.52 | K67: =I67+G67+J67 -> 81.02 | L67: 是
A68: 66 | B68: 杨森 | C68: 20230606013115 | D68: 小学 | E68: 体育 | F68: 72.5 | G68: 36.25 | H68: 87.11 | I68: 43.56 | K68: 79.81 | L68: 是
A69: 67 | B69: 应智会 | C69: 20230606013221 | D69: 小学 | E69: 体育 | F69: 71 | G69: 35.5 | H69: 87.29 | I69: 43.65 | K69: 79.15 | L69: 是
A70: 68 | B70: 毛云香 | C70: 20230606013125 | D70: 小学 | E70: 体育 | F70: 70 | G70: 35 | H70: 87.9 | I70: 43.95 | K70: 78.95
A71: 69 | B71: 余佳兴 | C71: 20230606013129 | D71: 小学 | E71: 体育 | F71: 70.5 | G71: 35.25 | H71: 86.93 | I71: 43.47 | K71: 78.72
A72: 70 | B72: 蔡长洪 | C72: 20230606013028 | D72: 小学 | E72: 体育 | F72: 68 | G72: 34 | H72: 88.54 | I72: 44.27 | K72: 78.27
A73: 71 | B73: 覃卯永 | C73: 20230606013030 | D73: 小学 | E73: 体育 | F73: 70 | G73: 35 | H73: 86.33 | I73: 43.17 | K73: 78.17
A74: 72 | B74: 杨广 | C74: 20230606013116 | D74: 小学 | E74: 体育 | F74: 69 | G74: 34.5 | H74: 86.5 | I74: 43.25 | K74: 77.75
A75: 73 | B75: 王瑞 | C75: 20230606013126 | D75: 小学 | E75: 体育 | F75: 68.5 | G75: 34.25 | H75: 86.42 | I75: 43.21 | K75: 77.46
A76: 74 | B76: 李伟 | C76: 20230606013216 | D76: 小学 | E76: 体育 | F76: 68 | G76: 34 | H76: 86.79 | I76: 43.4 | K76: 77.4
A77: 75 | B77: 吴琼 | C77: 20230606012609 | D77: 小学 | E77: 心理健康 | F77: 77 | G77: 38.5 | H77: 87.15 | I77: 43.58 | K77: 82.08 | L77: 是
A78: 76 | B78: 杨姗 | C78: 20230606012604 | D78: 小学 | E78: 心理健康 | F78: 74 | G78: 37 | H78: 88.47 | I78: 44.24 | K78: 81.24 | L78: 是
A79: 77 | B79: 李志红 | C79: 20230606012605 | D79: 小学 | E79: 心理健康 | F79: 72 | G79: 36 | H79: 87.61 | I79: 43.81 | K79: 79.81
A80: 78 | B80: 雷远兰 | C80: 20230606012611 | D80: 小学 | E80: 心理健康 | F80: 70 | G80: 35 | H80: 83.98 | I80: 41.99 | K80: 76.99
A81: 79 | B81: 樊思艳 | C81: 20230606012603 | D81: 小学 | E81: 心理健康 | F81: 67 | G81: 33.5 | H81: 84.83 | I81: 42.42 | K81: 75.92
A82: 80 | B82: 张国香 | C82: 20230606012606 | D82: 小学 | E82: 心理健康 | F82: 63 | G82: 31.5 | H82: 84.07 | I82: 42.04 | K82: 73.54
A83: 81 | B83: 赵莎 | C83: 20230606012608 | D83: 小学 | E83: 心理健康 | F83: 63 | G83: 31.5 | H83: 82.61 | I83: 41.31 | K83: 72.81
A84: 82 | B84: 赵艳 | C84: 20230606012707 | D84: 小学 | E84: 音乐 | F84: 90 | G84: 45 | H84: 84.61 | I84: 42.31 | K84: 87.31 | L84: 是
A85: 83 | B85: 张天霞 | C85: 20230606012821 | D85: 小学 | E85: 音乐 | F85: 87.5 | G85: 43.75 | H85: 84.83 | I85: 42.42 | K85: 86.17 | L85: 是
A86: 84 | B86: 卢羽婷 | C86: 20230606012824 | D86: 小学 | E86: 音乐 | F86: 85 | G86: 42.5 | H86: 85.61 | I86: 42.81 | K86: 85.31 | L86: 是
A87: 85 | B87: 段周蓉 | C87: 20230606012817 | D87: 小学 | E87: 音乐 | F87: 84.5 | G87: 42.25 | H87: 84.67 | I87: 42.34 | K87: 84.59
A88: 86 | B88: 余正芬 | C88: 20230606012802 | D88: 小学 | E88: 音乐 | F88: 83.5 | G88: 41.75 | H88: 84.11 | I88: 42.06 | K88: 83.81
A89: 87 | B89: 石梅 | C89: 20230606012811 | D89: 小学 | E89: 音乐 | F89: 79 | G89: 39.5 | H89: 84.5 | I89: 42.25 | K89: 81.75
A90: 88 | B90: 朱苏燕 | C90: 20230606012808 | D90: 小学 | E90: 音乐 | F90: 78.5 | G90: 39.25 | H90: 84.64 | I90: 42.32 | K90: 81.57
A91: 89 | B91: 彭耀婵 | C91: 20230606012718 | D91: 小学 | E91: 音乐 | F91: 77.5 | G91: 38.75 | H91: 85.3 | I91: 42.65 | K91: 81.4
A92: 90 | B92: 徐靖东 | C92: 20230606012816 | D92: 小学 | E92: 音乐 | F92: 81.5 | G92: 40.75 | H92: 79.17 | I92: 39.59 | K92: 80.34
A93: 91 | B93: 蔡丽 | C93: 20230606011801 | D93: 小学 | E93: 英语 | F93: 81.5 | G93: 40.75 | H93: 90.17 | I93: 45.09 | K93: 85.84 | L93: 是
A94: 92 | B94: 梁奕 | C94: 20230606011918 | D94: 小学 | E94: 英语 | F94: 78.5 | G94: 39.25 | H94: 92.63 | I94: 46.32 | K94: 85.57 | L94: 是
A95: 93 | B95: 景谷琴 | C95: 20230606011907 | D95: 小学 | E95: 英语 | F95: 84 | G95: 42 | H95: 83.4 | I95: 41.7 | K95: 83.7 | L95: 是
A96: 94 | B96: 徐山惠 | C96: 20230606011721 | D96: 小学 | E96: 英语 | F96: 80.5 | G96: 40.25 | H96: 86.42 | I96: 43.21 | K96: 83.46 | L96: 是
A97: 95 | B97: 张春燕 | C97: 20230606011921 | D97: 小学 | E97: 英语 | F97: 75.5 | G97: 37.75 | H97: 90.6 | I97: 45.3 | K97: 83.05
A98: 96 | B98: 赵琴艳 | C98: 20230606011903 | D98: 小学 | E98: 英语 | F98: 76 | G98: 38 | H98: 89.06 | I98: 44.53 | K98: 82.53
A99: 97 | B99: 龚明丽 | C99: 20230606012017 | D99: 小学 | E99: 英语 | F99: 78.5 | G99: 39.25 | H99: 86.37 | I99: 43.19 | K99: 82.44
A100: 98 | B100: 杨毅婷 | C100: 20230606011829 | D100: 小学 | E100: 英语 | F100: 77.5 | G100: 38.75 | H100: 85.99 | I100: 43 | K100: 81.75
A101: 99 | B101: 陈梅 | C101: 20230606011719 | D101: 小学 | E101: 英语 | F101: 80.5 | G101: 40.25 | H101: 82.94 | I101: 41.47 | K101: 81.72
A102: 100 | B102: 牟芳 | C102: 20230606011916 | D102: 小学 | E102: 英语 | F102: 75.5 | G102: 37.75 | H102: 84.74 | I102: 42.37 | K102: 80.12
A103: 101 | B103: 安晓琴 | C103: 20230606012001 | D103: 小学 | E103: 英语 | F103: 77 | G103: 38.5 | H103: 82.78 | I103: 41.39 | K103: 79.89
A104: 102 | B104: 蔡仁丹 | C104: 20230606011705 | D104: 小学 | E104: 英语 | F104: 76 | G104: 38 | H104: 83.54 | I104: 41.77 | K104: 79.77
A105: 103 | B105: 朱梦松 | C105: 20230606011720 | D105: 小学 | E105: 英语 | F105: 79.5 | G105: 39.75 | H105: 缺考 | I105: 0 | K105: 39.75
A106: 104 | B106: 赵文雪 | C106: 20230606010524 | D106: 小学 | E106: 语文 | F106: 80.5 | G106: 40.25 | H106: 90.46 | I106: 45.23 | K106: 85.48 | L106: 是
A107: 105 | B107: 游佳奕 | C107: 20230606010910 | D107: 小学 | E107: 语文 | F107: 79 | G107: 39.5 | H107: 89.9 | I107: 44.95 | K107: 84.45 | L107: 是
A108: 106 | B108: 黄露 | C108: 20230606010608 | D108: 小学 | E108: 语文 | F108: 75 | G108: 37.5 | H108: 88.41 | I108: 44.21 | K108: 81.71 | L108: 是
A109: 107 | B109: 邵文英 | C109: 20230606010616 | D109: 小学 | E109: 语文 | F109: 76 | G109: 38 | H109: 86.71 | I109: 43.36 | K109: 81.36 | L109: 是
A110: 108 | B110: 张红 | C110: 20230606010609 | D110: 小学 | E110: 语文 | F110: 80 | G110: 40 | H110: 80.96 | I110: 40.48 | K110: 80.48 | L110: 是
A111: 109 | B111: 郜锡珊 | C111: 20230606010515 | D111: 小学 | E111: 语文 | F111: 78 | G111: 39 | H111: 82.67 | I111: 41.34 | K111: 80.34 | L111: 是
A112: 110 | B112: 许东原 | C112: 20230606010601 | D112: 小学 | E112: 语文 | F112: 75.5 | G112: 37.75 | H112: 84.93 | I112: 42.47 | K112: 80.22 | L112: 是
A113: 111 | B113: 杜巧 | C113: 20230606010722 | D113: 小学 | E113: 语文 | F113: 76 | G113: 38 | H113: 84.09 | I113: 42.05 | K113: 80.05 | L113: 是
A114: 112 | B114: 安静 | C114: 20230606010727 | D114: 小学 | E114: 语文 | F114: 78 | G114: 39 | H114: 81.95 | I114: 40.98 | K114: 79.98
A115: 113 | B115: 吴梅 | C115: 20230606010821 | D115: 小学 | E115: 语文 | F115: 77.5 | G115: 38.75 | H115: 81.67 | I115: 40.84 | K115: 79.59
A116: 114 | B116: 李徐蕾 | C116: 20230606010226 | D116: 小学 | E116: 语文 | F116: 72 | G116: 36 | H116: 87.16 | I116: 43.58 | K116: 79.58
A117: 115 | B117: 杨远 | C117: 20230606010802 | D117: 小学 | E117: 语文 | F117: 76.5 | G117: 38.25 | H117: 82.08 | I117: 41.04 | K117: 79.29
A118: 116 | B118: 陆武婷 | C118: 20230606010529 | D118: 小学 | E118: 语文 | F118: 72 | G118: 36 | H118: 86.55 | I118: 43.28 | K118: 79.28
A119: 117 | B119: 李敏 | C119: 20230606010611 | D119: 小学 | E119: 语文 | F119: 78 | G119: 39 | H119: 80.48 | I119: 40.24 | K119: 79.24
A120: 118 | B120: 李前芬 | C120: 20230606010525 | D120: 小学 | E120: 语文 | F120: 76.5 | G120: 38.25 | H120: 80.95 | I120: 40.48 | K120: 78.73
A121: 119 | B121: 何欢 | C121: 20230606010720 | D121: 小学 | E121: 语文 | F121: 72 | G121: 36 | H121: 83.89 | I121: 41.95 | K121: 77.95
A122: 120 | B122: 彭陆霞 | C122: 20230606010823 | D122: 小学 | E122: 语文 | F122: 74 | G122: 37 | H122: 81.39 | I122: 40.7 | K122: 77.7
A123: 121 | B123: 李灵冰 | C123: 20230606010407 | D123: 小学 | E123: 语文 | F123: 73 | G123: 36.5 | H123: 82.12 | I123: 41.06 | K123: 77.56
A124: 122 | B124: 雷旭 | C124: 20230606010614 | D124: 小学 | E124: 语文 | F124: 74.5 | G124: 37.25 | H124: 80.55 | I124: 40.28 | K124: 77.53
A125: 123 | B125: 江小雪 | C125: 20230606011001 | D125: 小学 | E125: 语文 | F125: 72.5 | G125: 36.25 | H125: 80.13 | I125: 40.07 | K125: 76.32
A126: 124 | B126: 杨莉 | C126: 20230606010713 | D126: 小学 | E126: 语文 | F126: 73 | G126: 36.5 | H126: 78.84 | I126: 39.42 | K126: 75.92
A127: 125 | B127: 姜红平 | C127: 20230606010502 | D127: 小学 | E127: 语文 | F127: 72 | G127: 36 | H127: 77.6 | I127: 38.8 | K127: 74.8
A128: 126 | B128: 陈露 | C128: 20230606010826 | D128: 小学 | E128: 语文 | F128: 72 | G128: 36 | H128: 76.04 | I128: 38.02 | K128: 74.02
A129: 127 | B129: 李艳丽 | C129: 20230606010425 | D129: 小学 | E129: 语文 | F129: 72.5 | G129: 36.25 | H129: 74.4 | I129: 37.2 | K129: 73.45
A130: 128 | B130: 张娇娇 | C130: 20230606010417 | D130: 小学 | E130: 语文 | F130: 74 | G130: 37 | H130: 72.81 | I130: 36.41 | K130: 73.41
A131: 129 | B131: 张小芬 | C131: 20230606010211 | D131: 小学 | E131: 语文 | F131: 74.5 | G131: =F131*0.5 -> 37.25 | H131: 缺考 | I131: 0 | K131: =I131+G131+J131 -> 37.25
A132: 130 | B132: 梁春霞 | C132: 20230606010411 | D132: 小学 | E132: 语文 | F132: 72 | G132: 36 | H132: 缺考 | I132: 0 | K132: 36
A133: 131 | B133: 龚邵英 | C133: 20230606011004 | D133: 小学 | E133: 语文 | F133: 72 | G133: 36 | H133: 缺考 | I133: 0 | K133: 36
A134: 132 | B134: 梁咏梅 | C134: 20230606013511 | D134: 幼儿园 | E134: 幼教A | F134: 79.5 | G134: 39.75 | H134: 87.35 | I134: =ROUND(H134*0.5,2) -> 43.68 | K134: 83.43 | L134: 是
A135: 133 | B135: 杨科 | C135: 20230606013403 | D135: 幼儿园 | E135: 幼教A | F135: 74 | G135: 37 | H135: 89.52 | I135: 44.76 | K135: 81.76 | L135: 是
A136: 134 | B136: 王丽 | C136: 20230606013818 | D136: 幼儿园 | E136: 幼教A | F136: 79.5 | G136: 39.75 | H136: 81.38 | I136: 40.69 | K136: 80.44 | L136: 是
A137: 135 | B137: 冉秀丽 | C137: 20230606013904 | D137: 幼儿园 | E137: 幼教A | F137: 80 | G137: 40 | H137: 79.64 | I137: 39.82 | K137: 79.82 | L137: 是
A138: 136 | B138: 余艳 | C138: 20230606013720 | D138: 幼儿园 | E138: 幼教A | F138: 70.5 | G138: 35.25 | H138: 87.8 | I138: 43.9 | K138: 79.15 | L138: 是
A139: 137 | B139: 熊莜立 | C139: 20230606013827 | D139: 幼儿园 | E139: 幼教A | F139: 66 | G139: 33 | H139: 89.16 | I139: 44.58 | K139: 77.58 | L139: 是
A140: 138 | B140: 徐婉霖 | C140: 20230606013419 | D140: 幼儿园 | E140: 幼教A | F140: 67.5 | G140: 33.75 | H140: 87.12 | I140: 43.56 | K140: 77.31 | L140: 是
A141: 139 | B141: 袁琴 | C141: 20230606013820 | D141: 幼儿园 | E141: 幼教A | F141: 81 | G141: 40.5 | H141: 72.76 | I141: 36.38 | K141: 76.88 | L141: 是
A142: 140 | B142: 任明群 | C142: 20230606013703 | D142: 幼儿园 | E142: 幼教A | F142: 63.5 | G142: 31.75 | H142: 90.21 | I142: 45.11 | K142: 76.86 | L142: 是
A143: 141 | B143: 严静 | C143: 20230606013404 | D143: 幼儿园 | E143: 幼教A | F143: 74.5 | G143: 37.25 | H143: 76.3 | I143: 38.15 | K143: 75.4 | L143: 是
A144: 142 | B144: 陈敏 | C144: 20230606013706 | D144: 幼儿园 | E144: 幼教A | F144: 75.5 | G144: 37.75 | H144: 74.81 | I144: 37.41 | K144: 75.16 | L144: 是
A145: 143 | B145: 张敏 | C145: 20230606013908 | D145: 幼儿园 | E145: 幼教A | F145: 72 | G145: 36 | H145: 78.22 | I145: 39.11 | K145: 75.11 | L145: 是
A146: 144 | B146: 马妮 | C146: 20230606013328 | D146: 幼儿园 | E146: 幼教A | F146: 73 | G146: 36.5 | H146: 76.96 | I146: 38.48 | K146: 74.98 | L146: 是
A147: 145 | B147: 张玉琳 | C147: 20230606013613 | D147: 幼儿园 | E147: 幼教A | F147: 66.5 | G147: 33.25 | H147: 75.62 | I147: 37.81 | J147: 3 | K147: 74.06 | L147: 是 | M147: 山村幼教志愿者
A148: 146 | B148: 杨红 | C148: 20230606013626 | D148: 幼儿园 | E148: 幼教A | F148: 69 | G148: 34.5 | H148: 78.29 | I148: 39.15 | K148: 73.65 | L148: 是
A149: 147 | B149: 丁文梅 | C149: 20230606013312 | D149: 幼儿园 | E149: 幼教A | F149: 68 | G149: 34 | H149: 78.76 | I149: 39.38 | K149: 73.38
A150: 148 | B150: 吴丹 | C150: 20230606013607 | D150: 幼儿园 | E150: 幼教A | F150: 75.5 | G150: 37.75 | H150: 70.53 | I150: 35.27 | K150: 73.02
A151: 149 | B151: 王海宇 | C151: 20230606013916 | D151: 幼儿园 | E151: 幼教A | F151: 70.5 | G151: 35.25 | H151: 74.05 | I151: 37.03 | K151: 72.28
A152: 150 | B152: 胡佳 | C152: 20230606013311 | D152: 幼儿园 | E152: 幼教A | F152: 61.5 | G152: 30.75 | H152: 82.25 | I152: 41.13 | K152: 71.88
A153: 151 | B153: 史文珍 | C153: 20230606013509 | D153: 幼儿园 | E153: 幼教A | F153: 65.5 | G153: 32.75 | H153: 76.84 | I153: 38.42 | K153: 71.17
A154: 152 | B154: 何春婷 | C154: 20230606013427 | D154: 幼儿园 | E154: 幼教A | F154: 67.5 | G154: 33.75 | H154: 74.42 | I154: 37.21 | K154: 70.96
A155: 153 | B155: 黄霞 | C155: 20230606013424 | D155: 幼儿园 | E155: 幼教A | F155: 62.5 | G155: 31.25 | H155: 72.14 | I155: 36.07 | J155: 3 | K155: 70.32 | M155: 山村幼教志愿者
A156: 154 | B156: 冯远梅 | C156: 20230606013730 | D156: 幼儿园 | E156: 幼教A | F156: 65.5 | G156: 32.75 | H156: 74.96 | I156: 37.48 | K156: 70.23
A157: 155 | B157: 李慧 | C157: 20230606013702 | D157: 幼儿园 | E157: 幼教A | F157: 65.5 | G157: 32.75 | H157: 74.91 | I157: 37.46 | K157: 70.21
A158: 156 | B158: 吕娟 | C158: 20230606013519 | D158: 幼儿园 | E158: 幼教A | F158: 56.5 | G158: 28.25 | H158: 77.76 | I158: 38.88 | J158: 3 | K158: 70.13 | M158: 山村幼教志愿者
A159: 157 | B159: 蔡双 | C159: 20230606013325 | D159: 幼儿园 | E159: 幼教A | F159: 58.5 | G159: 29.25 | H159: 81.72 | I159: 40.86 | K159: 70.11
A160: 158 | B160: 蒲芳芳 | C160: 20230606013828 | D160: 幼儿园 | E160: 幼教A | F160: 63 | G160: 31.5 | H160: 76.92 | I160: 38.46 | K160: 69.96
A161: 159 | B161: 曾丹 | C161: 20230606013423 | D161: 幼儿园 | E161: 幼教A | F161: 65.5 | G161: 32.75 | H161: 73.88 | I161: 36.94 | K161: 69.69
A162: 160 | B162: 杨霞 | C162: 20230606013521 | D162: 幼儿园 | E162: 幼教A | F162: 57.5 | G162: 28.75 | H162: 79.84 | I162: 39.92 | K162: 68.67
A163: 161 | B163: 左德英 | C163: 20230606013412 | D163: 幼儿园 | E163: 幼教A | F163: 58 | G163: 29 | H163: 72.95 | I163: 36.48 | J163: 3 | K163: 68.48 | M163: 山村幼教志愿者
A164: 162 | B164: 敖慧萍 | C164: 20230606013621 | D164: 幼儿园 | E164: 幼教A | F164: 61 | G164: 30.5 | H164: 75.94 | I164: 37.97 | K164: 68.47
A165: 163 | B165: 任洪连 | C165: 20230606013617 | D165: 幼儿园 | E165: 幼教A | F165: 59.5 | G165: 29.75 | H165: 77.38 | I165: 38.69 | K165: 68.44
A166: 164 | B166: 余应娇 | C166: 20230606013512 | D166: 幼儿园 | E166: 幼教A | F166: 59.5 | G166: 29.75 | H166: 76.58 | I166: 38.29 | K166: 68.04
A167: 165 | B167: 鲁娟 | C167: 20230606013719 | D167: 幼儿园 | E167: 幼教A | F167: 63 | G167: 31.5 | H167: 73.01 | I167: 36.51 | K167: 68.01
A168: 166 | B168: 邱双飞 | C168: 20230606013813 | D168: 幼儿园 | E168: 幼教A | F168: 62.5 | G168: 31.25 | H168: 72.78 | I168: 36.39 | K168: 67.64
A169: 167 | B169: 满家慧 | C169: 20230606013609 | D169: 幼儿园 | E169: 幼教A | F169: 61 | G169: 30.5 | H169: 73.79 | I169: 36.9 | K169: 67.4
A170: 168 | B170: 杨木玲 | C170: 20230606013501 | D170: 幼儿园 | E170: 幼教A | F170: 56.5 | G170: 28.25 | H170: 76.5 | I170: 38.25 | K170: 66.5
A171: 169 | B171: 毛名芝 | C171: 20230606013317 | D171: 幼儿园 | E171: 幼教A | F171: 58.5 | G171: 29.25 | H171: 74.3 | I171: 37.15 | K171: 66.4
A172: 170 | B172: 唐彬雪 | C172: 20230606013522 | D172: 幼儿园 | E172: 幼教A | F172: 58.5 | G172: 29.25 | H172: 74.18 | I172: 37.09 | K172: 66.34
A173: 171 | B173: 吴文会 | C173: 20230606013808 | D173: 幼儿园 | E173: 幼教A | F173: 56.5 | G173: 28.25 | H173: 74.08 | I173: 37.04 | K173: 65.29
A174: 172 | B174: 韩世芳 | C174: 20230606013616 | D174: 幼儿园 | E174: 幼教A | F174: 58.5 | G174: 29.25 | H174: 71.99 | I174: 36 | K174: 65.25
A175: 173 | B175: 刘光燕 | C175: 20230606013627 | D175: 幼儿园 | E175: 幼教A | F175: 57.5 | G175: 28.75 | H175: 72.24 | I175: 36.12 | K175: 64.87
A176: 174 | B176: 蒋燕多 | C176: 20230606013314 | D176: 幼儿园 | E176: 幼教A | F176: 57 | G176: 28.5 | H176: 69.96 | I176: 34.98 | K176: 63.48
A177: 175 | B177: 李永彩 | C177: 20230606013615 | D177: 幼儿园 | E177: 幼教A | F177: 63 | G177: 31.5 | H177: 缺考 | I177: 0 | K177: 31.5
A178: 176 | B178: 杨雨 | C178: 20230606013817 | D178: 幼儿园 | E178: 幼教A | F178: 62.5 | G178: 31.25 | H178: 缺考 | I178: 0 | K178: 31.25
A179: 177 | B179: 喻永栏 | C179: 20230606013709 | D179: 幼儿园 | E179: 幼教A | F179: 60.5 | G179: 30.25 | H179: 缺考 | I179: 0 | K179: 30.25
A180: 178 | B180: 陈德容 | C180: 20230606013313 | D180: 幼儿园 | E180: 幼教A | F180: 57 | G180: 28.5 | H180: 缺考 | I180: 0 | K180: 28.5
A181: 179 | B181: 田利芹 | C181: 20230606014412 | D181: 幼儿园 | E181: 幼教B | F181: 72 | G181: 36 | H181: 80.02 | I181: 40.01 | J181: 3 | K181: 79.01 | L181: 是 | M181: 山村幼教志愿者
A182: 180 | B182: 龙方琴 | C182: 20230606014204 | D182: 幼儿园 | E182: 幼教B | F182: 70 | G182: 35 | H182: 76.26 | I182: 38.13 | J182: 3 | K182: 76.13 | L182: 是 | M182: 山村幼教志愿者
A183: 181 | B183: 鲜文娅 | C183: 20230606014504 | D183: 幼儿园 | E183: 幼教B | F183: 78.5 | G183: 39.25 | H183: 73.67 | I183: 36.84 | K183: 76.09 | L183: 是
A184: 182 | B184: 肖佳 | C184: 20230606014024 | D184: 幼儿园 | E184: 幼教B | F184: 78 | G184: 39 | H184: 73.96 | I184: 36.98 | K184: 75.98 | L184: 是
A185: 183 | B185: 刘欢 | C185: 20230606013925 | D185: 幼儿园 | E185: 幼教B | F185: 73.5 | G185: 36.75 | H185: 76.35 | I185: 38.18 | K185: 74.93 | L185: 是
A186: 184 | B186: 陆伍堃 | C186: 20230606014207 | D186: 幼儿园 | E186: 幼教B | F186: 72 | G186: 36 | H186: 77.78 | I186: 38.89 | K186: 74.89 | L186: 是
A187: 185 | B187: 谢晓颖 | C187: 20230606014304 | D187: 幼儿园 | E187: 幼教B | F187: 70 | G187: 35 | H187: 78.54 | I187: 39.27 | K187: 74.27 | L187: 是
A188: 186 | B188: 尚娜 | C188: 20230606014608 | D188: 幼儿园 | E188: 幼教B | F188: 70.5 | G188: 35.25 | H188: 77.41 | I188: 38.71 | K188: 73.96 | L188: 是
A189: 187 | B189: 覃敏 | C189: 20230606014330 | D189: 幼儿园 | E189: 幼教B | F189: 76 | G189: 38 | H189: 71.28 | I189: 35.64 | K189: 73.64 | L189: 是
A190: 188 | B190: 金艳 | C190: 20230606014228 | D190: 幼儿园 | E190: 幼教B | F190: 64 | G190: 32 | H190: 76.57 | I190: 38.29 | J190: 3 | K190: 73.29 | L190: 是 | M190: 山村幼教志愿者
A191: 189 | B191: 李海燕 | C191: 20230606014001 | D191: 幼儿园 | E191: 幼教B | F191: 73 | G191: 36.5 | H191: 73.37 | I191: 36.69 | K191: 73.19 | L191: 是
A192: 190 | B192: 覃娅 | C192: 20230606014323 | D192: 幼儿园 | E192: 幼教B | F192: 73.5 | G192: 36.75 | H192: 72.58 | I192: 36.29 | K192: 73.04 | L192: 是
A193: 191 | B193: 吴海兰 | C193: 20230606014129 | D193: 幼儿园 | E193: 幼教B | F193: 70.5 | G193: 35.25 | H193: 73.77 | I193: 36.89 | K193: 72.14 | L193: 是
A194: 192 | B194: 王福玉 | C194: 20230606014307 | D194: 幼儿园 | E194: 幼教B | F194: 67 | G194: 33.5 | H194: 71.08 | I194: 35.54 | J194: 3 | K194: 72.04 | L194: 是 | M194: 山村幼教志愿者
A195: 193 | B195: 万永新 | C195: 20230606013927 | D195: 幼儿园 | E195: 幼教B | F195: 69 | G195: =F195*0.5 -> 34.5 | H195: 74.29 | I195: =ROUND(H195*0.5,2) -> 37.15 | K195: =I195+G195+J195 -> 71.65 | L195: 是
A196: 194 | B196: 黄怡翔 | C196: 20230606013928 | D196: 幼儿园 | E196: 幼教B | F196: 63 | G196: 31.5 | H196: 79.89 | I196: 39.95 | K196: 71.45
A197: 195 | B197: 谭丹 | C197: 20230606014320 | D197: 幼儿园 | E197: 幼教B | F197: 68.5 | G197: 34.25 | H197: 74.09 | I197: 37.05 | K197: 71.3
A198: 196 | B198: 吴正美 | C198: 20230606014306 | D198: 幼儿园 | E198: 幼教B | F198: 70 | G198: 35 | H198: 72.56 | I198: 36.28 | K198: 71.28
A199: 197 | B199: 王维嘉 | C199: 20230606014312 | D199: 幼儿园 | E199: 幼教B | F199: 64.5 | G199: 32.25 | H199: 77.58 | I199: 38.79 | K199: 71.04
A200: 198 | B200: 张鸿 | C200: 20230606014006 | D200: 幼儿园 | E200: 幼教B | F200: 70.5 | G200: 35.25 | H200: 71.42 | I200: 35.71 | K200: 70.96
... 26 more rows
